bitfinex/quotes_BTCUSD_20240826
["timestamp","ask_amount","ask_price","bid_price","bid_amount"]
[1724659001148,0.21756046,63729.0,63728.0,0.00660001]
[1724659001365,0.49494526,63729.0,63728.0,0.00660001]
[1724659001594,0.58888797,63729.0,63728.0,0.00660001]
[1724659001796,0.96568726,63729.0,63728.0,0.00660001]
[1724659002123,0.65185926,63729.0,63728.0,0.00660001]
[1724659002479,0.96468726,63729.0,63728.0,0.00660001]
[1724659002648,0.97368726,63729.0,63728.0,0.00760001]
[1724659003036,0.97309199,63729.0,63728.0,0.00760001]
[1724659003239,0.470772,63725.0,63724.0,0.00825]
[1724659003439,1.3605641,63725.0,63724.0,0.00825]
[1724659003640,1.83059011,63725.0,63724.0,0.00825]
[1724659003894,2.31776984,63725.0,63724.0,0.00825]
[1724659004293,2.31788635,63725.0,63724.0,0.00825]
[1724659004919,2.33188635,63725.0,63724.0,0.00925]
[1724659005086,2.34588635,63725.0,63724.0,0.01025]
[1724659005297,2.33188635,63725.0,63724.0,0.00925]
[1724659005502,1.99928533,63725.0,63724.0,0.01025]
[1724659006302,1.98528533,63725.0,63724.0,0.00925]
[1724659006505,1.98528533,63725.0,63724.0,0.01025]
[1724659006506,1.54484128,63725.0,63724.0,0.01025]
[1724659009019,1.54484451,63725.0,63724.0,0.01025]
[1724659011094,0.1362,63719.0,63714.0,0.0002]
[1724659011297,0.1362,63716.0,63714.0,0.0002]
[1724659011505,0.00392386,63715.0,63714.0,0.0002]
[1724659012196,1.33121438,63715.0,63714.0,0.0002]
[1724659012433,1.53494437,63715.0,63714.0,0.0002]
[1724659012632,1.83822248,63715.0,63714.0,0.0002]
[1724659012831,2.15211948,63715.0,63714.0,0.0002]
[1724659013439,1.83822248,63715.0,63714.0,0.0002]
[1724659013716,1.85224136,63715.0,63714.0,0.0002]
[1724659013931,1.54256407,63715.0,63714.0,0.0002]
[1724659014137,0.23020298,63715.0,63714.0,0.0002]
[1724659014344,0.1581,63715.0,63714.0,0.0002]
[1724659014569,0.1721,63715.0,63714.0,0.0002]
[1724659014782,0.1601,63715.0,63714.0,0.0002]
[1724659015007,0.33497214,63715.0,63714.0,0.0002]
[1724659015588,0.17802414,63715.0,63714.0,0.0002]
[1724659015793,0.1741,63715.0,63714.0,0.0002]
[1724659016366,0.1741,63715.0,63714.0,0.001025]
[1724659017814,0.17802407,63715.0,63714.0,0.001025]
[1724659018210,0.1741,63715.0,63714.0,0.001025]
[1724659018414,0.1741,63715.0,63714.0,0.157976]
[1724659018617,0.1741,63715.0,63714.0,0.471878]
[1724659019140,0.1741,63715.0,63714.0,0.157976]
[1724659019938,0.1741,63715.0,63714.0,0.001025]
[1724659020157,0.1741,63715.0,63714.0,0.154901]
[1724659020764,0.1741,63715.0,63714.0,0.468803]
[1724659021917,0.1741,63715.0,63714.0,0.154901]
[1724659022158,0.1741,63715.0,63714.0,0.468803]
[1724659024574,0.028,63715.0,63714.0,0.782705]
[1724659026756,0.028,63715.0,63714.0,0.154901]
[1724659026910,0.1042,63715.0,63714.0,0.156951]
[1724659028477,0.1042,63715.0,63714.0,0.470853]
[1724659028967,0.1042,63715.0,63714.0,0.471678]
[1724659029817,0.1042,63715.0,63714.0,0.157776]
[1724659030092,0.1663,63715.0,63714.0,0.157776]
[1724659030494,0.1663,63715.0,63714.0,0.471678]
[1724659030724,0.1663,63715.0,63714.0,0.157776]
[1724659031515,0.16611114,63715.0,63714.0,0.157776]
[1724659032726,0.16611114,63715.0,63714.0,0.000825]
[1724659032907,0.32698316,63715.0,63714.0,0.000825]
[1724659033568,0.64088016,63715.0,63714.0,0.000825]
[1724659033756,0.32698316,63715.0,63714.0,0.000825]
[1724659034091,0.64088016,63715.0,63714.0,0.000825]
[1724659034288,0.95477716,63715.0,63714.0,0.000825]
[1724659035200,0.95477716,63715.0,63708.0,0.15451501]
[1724659035201,0.0655,63710.0,63708.0,0.15451501]
[1724659035354,0.0655,63710.0,63705.0,0.313943]
[1724659035355,0.00392425,63709.0,63705.0,0.313943]
[1724659035555,0.156966,63708.0,63705.0,0.156972]
[1724659035758,0.00392443,63707.0,63705.0,0.156972]
[1724659037097,0.00392443,63707.0,63703.0,0.313953]
[1724659037098,0.00392445,63709.0,63704.0,0.156975]
[1724659037269,0.156967,63708.0,63704.0,0.156975]
[1724659037480,0.00392451,63707.0,63704.0,0.156975]
[1724659037724,0.16089351,63707.0,63704.0,0.156975]
[1724659038159,0.00392451,63707.0,63704.0,0.156975]
[1724659038373,0.00392451,63707.0,63700.0,0.31397]
[1724659038374,0.00392451,63707.0,63706.0,0.156971]
[1724659038577,0.01,63707.0,63706.0,0.156971]
[1724659038981,0.00392446,63708.0,63704.0,0.470925]
[1724659039183,0.00392446,63708.0,63705.0,0.156971]
[1724659039343,0.01,63707.0,63705.0,0.156971]
[1724659039543,0.00392448,63706.0,63705.0,0.156971]
[1724659039940,0.01392448,63707.0,63705.0,0.156971]
[1724659040774,0.00392448,63707.0,63706.0,0.156971]
[1724659041723,0.12389831,63711.0,63706.0,0.156971]
[1724659041724,0.16088749,63709.0,63706.0,0.156971]
[1724659041936,0.01,63707.0,63706.0,0.156971]
[1724659042143,0.00392449,63707.0,63706.0,0.156971]
[1724659042561,0.02392449,63707.0,63706.0,0.156971]
[1724659043611,0.02392449,63707.0,63705.0,0.157798]
[1724659044533,0.04676737,63706.0,63705.0,0.157798]
[1724659045395,0.09745923,63707.0,63705.0,0.157798]
[1724659045587,0.009,63706.0,63705.0,0.157798]
[1724659046414,0.12591843,63706.0,63705.0,0.157798]
[1724659046812,0.47788738,63706.0,63705.0,0.157798]
[1724659047214,0.47822743,63706.0,63705.0,0.157798]
[1724659047390,0.36096806,63706.0,63705.0,0.157798]
[1724659048209,0.36996806,63706.0,63705.0,0.157798]
[1724659050602,0.36996815,63706.0,63705.0,0.157798]
[1724659050962,0.36996815,63706.0,63705.0,0.471745]
[1724659051364,0.36996815,63706.0,63705.0,0.157798]
[1724659053688,0.36996815,63706.0,63705.0,0.471745]
[1724659053884,0.36996815,63706.0,63705.0,0.157798]
[1724659054092,0.51083512,63706.0,63705.0,0.157798]
[1724659054286,0.36996815,63706.0,63705.0,0.157798]
[1724659055742,0.51087183,63706.0,63705.0,0.157798]
[1724659055941,0.36996815,63706.0,63705.0,0.157798]
[1724659056293,0.51087183,63706.0,63705.0,0.000825]
[1724659056717,0.36996815,63706.0,63705.0,0.000825]
[1724659057139,0.51088999,63706.0,63705.0,0.000825]
[1724659057734,0.36997521,63706.0,63705.0,0.000825]
[1724659057944,0.36997521,63706.0,63705.0,0.157798]
[1724659058146,0.51088999,63706.0,63705.0,0.157798]
[1724659058353,0.51091056,63706.0,63705.0,0.157798]
[1724659058767,0.36997521,63706.0,63705.0,0.157798]
[1724659058976,0.51091056,63706.0,63705.0,0.157798]
[1724659059195,0.36997521,63706.0,63705.0,0.157798]
[1724659059556,0.51091056,63706.0,63705.0,0.157798]
[1724659059695,0.36997521,63706.0,63705.0,0.157798]
[1724659064011,0.36605072,63706.0,63705.0,0.471745]
[1724659067059,0.36605072,63706.0,63705.0,0.157798]
[1724659067246,0.36605072,63706.0,63705.0,0.620245]
[1724659067651,0.36605072,63706.0,63705.0,0.306298]
[1724659067904,0.36605072,63706.0,63705.0,0.149325]
[1724659068839,0.36605072,63706.0,63705.0,0.306298]
[1724659069471,0.36605072,63706.0,63705.0,0.149325]
[1724659071958,0.36605072,63706.0,63705.0,0.306298]
[1724659072942,0.36586181,63706.0,63705.0,0.306298]
[1724659074282,0.50679716,63706.0,63705.0,0.306298]
[1724659076085,0.50679716,63706.0,63705.0,0.157798]
[1724659076905,0.50686667,63706.0,63705.0,0.157798]
[1724659077400,0.36585335,63706.0,63705.0,0.157798]
[1724659080502,0.36585335,63706.0,63705.0,0.471745]
[1724659080717,0.36585335,63706.0,63705.0,0.929192]
[1724659081108,0.36585335,63706.0,63705.0,1.243139]
[1724659084392,0.48337578,63706.0,63705.0,1.243139]
[1724659085219,0.36585335,63706.0,63705.0,1.266139]
[1724659085419,0.08831289,63706.0,63705.0,1.266139]
[1724659086627,0.01781109,63706.0,63705.0,1.266139]
[1724659088718,0.36581262,63706.0,63705.0,1.266139]
[1724659090388,0.36672013,63706.0,63705.0,1.266139]
[1724659096942,0.0187186,63706.0,63705.0,1.266139]
[1724659098849,0.08913563,63706.0,63705.0,1.266139]
[1724659100565,0.08913563,63706.0,63705.0,1.73626401]
[1724659100799,0.0187186,63706.0,63705.0,1.73626401]
[1724659100970,0.0187186,63706.0,63705.0,2.05021101]
[1724659101170,0.0187186,63706.0,63705.0,2.36415801]
[1724659101927,0.0097186,63706.0,63705.0,2.36415801]
[1724659102074,0.00090751,63706.0,63705.0,2.36415801]
[1724659102292,0.00090751,63706.0,63705.0,2.36515801]
[1724659102525,0.00090751,63706.0,63705.0,2.45247068]
[1724659104679,0.00090751,63706.0,63705.0,2.13852368]
[1724659104946,0.00090751,63706.0,63705.0,1.73726401]
[1724659105086,0.00090751,63706.0,63705.0,1.82457668]
[1724659106095,0.04693853,63710.0,63705.0,1.82457668]
[1724659106096,0.12259127,63717.0,63716.0,0.156946]
[1724659106298,0.47056363,63717.0,63716.0,0.470838]
[1724659106502,0.12259127,63717.0,63716.0,0.78473]
[1724659107555,0.13359127,63717.0,63716.0,0.78473]
[1724659108179,0.14459127,63717.0,63716.0,0.78473]
[1724659108387,0.19147692,63717.0,63716.0,0.78473]
[1724659108798,0.14459127,63717.0,63716.0,0.78473]
[1724659109131,0.12737454,63717.0,63716.0,0.78473]
[1724659109271,0.06888327,63717.0,63716.0,0.78473]
[1724659109455,0.022,63717.0,63716.0,1.098622]
[1724659110094,0.022,63717.0,63716.0,1.246922]
[1724659110296,0.022,63717.0,63716.0,1.269922]
[1724659111263,0.022,63717.0,63716.0,1.73999201]
[1724659112525,0.022,63717.0,63716.0,1.74822916]
[1724659113010,0.011,63717.0,63716.0,1.74822916]
[1724659113212,0.018,63717.0,63716.0,1.74822916]
[1724659113663,0.007,63717.0,63716.0,1.74822916]
[1724659114043,0.014,63717.0,63716.0,1.74822916]
[1724659115441,0.01490751,63717.0,63716.0,1.74822916]
[1724659118566,0.01490751,63717.0,63716.0,1.12985915]
[1724659118793,0.01490751,63717.0,63716.0,1.121622]
[1724659125109,0.07970751,63717.0,63716.0,0.78473]
[1724659125351,0.07970751,63717.0,63712.0,0.156955]
[1724659125352,0.0796,63716.0,63712.0,0.156955]
[1724659125602,0.0796,63716.0,63711.0,0.313915]
[1724659125603,0.08731267,63714.0,63713.0,0.156953]
[1724659125803,0.16691267,63714.0,63712.0,0.156955]
[1724659125950,0.0701798,63713.0,63712.0,0.156955]
[1724659126160,0.07017983,63713.0,63712.0,0.156955]
[1724659126376,0.07017983,63713.0,63712.0,0.470867]
[1724659126832,0.07017983,63713.0,63712.0,0.156955]
[1724659127037,0.15277983,63714.0,63713.0,0.156953]
[1724659127390,0.0796,63714.0,63713.0,0.156953]
[1724659128270,0.52118341,63714.0,63713.0,0.156953]
[1724659128478,0.61149608,63714.0,63713.0,0.156953]
[1724659128716,0.51792297,63714.0,63713.0,0.156953]
[1724659129364,0.61451453,63714.0,63713.0,0.156953]
[1724659130405,0.52092297,63714.0,63713.0,0.156953]
[1724659130608,0.6145141,63714.0,63713.0,0.156953]
[1724659130994,0.52092297,63714.0,63713.0,0.156953]
[1724659131242,0.61451434,63714.0,63713.0,0.156953]
[1724659131623,0.52092297,63714.0,63713.0,0.156953]
[1724659131846,0.63788935,63714.0,63713.0,0.156953]
[1724659132234,0.52092297,63714.0,63713.0,0.156953]
[1724659132442,0.61449659,63714.0,63713.0,0.156953]
[1724659132849,0.52092297,63714.0,63713.0,0.156953]
[1724659133088,0.52092297,63714.0,63712.0,0.156955]
[1724659133089,0.61449735,63714.0,63712.0,0.156955]
[1724659133312,0.35193422,63713.0,63712.0,0.156955]
[1724659133517,0.44550747,63713.0,63712.0,0.156955]
[1724659134122,0.07410022,63713.0,63712.0,0.156955]
[1724659134328,0.00392392,63713.0,63712.0,0.156955]
[1724659134532,0.00592392,63713.0,63712.0,0.156955]
[1724659134739,0.07609401,63713.0,63712.0,0.156955]
[1724659135560,0.07609401,63713.0,63707.0,0.313935]
[1724659135766,0.0467782,63712.0,63711.0,0.156956]
[1724659136187,0.07809122,63713.0,63711.0,0.156956]
[1724659136390,0.0741673,63713.0,63711.0,0.156956]
[1724659136572,0.07575672,63713.0,63711.0,0.156956]
[1724659136801,0.07575672,63713.0,63712.0,0.156956]
[1724659137209,0.07375672,63713.0,63712.0,0.156956]
[1724659137393,0.07375672,63713.0,63711.0,0.156958]
[1724659137605,0.04677635,63712.0,63711.0,0.156958]
[1724659137983,0.07375672,63713.0,63712.0,0.156956]
[1724659138595,0.07575672,63713.0,63712.0,0.156956]
[1724659139021,0.0701673,63714.0,63713.0,0.156953]
[1724659139399,0.07107481,63714.0,63713.0,0.156953]
[1724659140392,0.07407481,63714.0,63713.0,0.156953]
[1724659140599,0.07707481,63714.0,63713.0,0.156953]
[1724659140985,0.07707481,63714.0,63713.0,0.47086]
[1724659143372,0.07707481,63714.0,63713.0,0.784767]
[1724659143574,0.00690751,63714.0,63713.0,0.784767]
[1724659144783,0.07707483,63714.0,63713.0,0.784767]
[1724659145511,0.00690751,63714.0,63713.0,0.784767]
[1724659145838,0.07707483,63714.0,63713.0,0.47086]
[1724659146551,0.00690751,63714.0,63713.0,0.784767]
[1724659146779,0.05368293,63714.0,63713.0,0.47086]
[1724659146989,0.05368293,63714.0,63713.0,0.784767]
[1724659146990,0.05368328,63714.0,63713.0,0.784767]
[1724659148055,0.05368328,63714.0,63713.0,0.927267]
[1724659148261,0.00690751,63714.0,63713.0,0.927267]
[1724659149186,0.00690751,63714.0,63713.0,0.784767]
[1724659149625,0.05368328,63714.0,63713.0,0.784767]
[1724659150042,0.00690751,63714.0,63713.0,0.784767]
[1724659150875,0.00690751,63714.0,63713.0,0.921067]
[1724659151279,0.00690751,63714.0,63713.0,0.860367]
[1724659151720,0.00690751,63714.0,63713.0,0.861192]
[1724659161394,0.05369661,63714.0,63713.0,0.861192]
[1724659163348,0.00690751,63714.0,63713.0,0.861192]
[1724659164400,0.00690751,63714.0,63713.0,1.175099]
[1724659164627,0.07716118,63714.0,63713.0,0.861192]
[1724659165007,0.07716118,63714.0,63713.0,1.175099]
[1724659165159,0.00690751,63714.0,63713.0,1.175099]
[1724659165543,0.07718463,63714.0,63713.0,1.175099]
[1724659166596,0.00690751,63714.0,63713.0,1.175099]
[1724659166802,0.05376729,63714.0,63713.0,1.175099]
[1724659167207,0.00690751,63714.0,63713.0,1.175099]
[1724659167476,0.07718463,63714.0,63713.0,1.175099]
[1724659168305,0.07699573,63714.0,63713.0,1.175099]
[1724659170242,0.07699573,63714.0,63713.0,1.240499]
[1724659170423,0.00671861,63714.0,63713.0,1.35081167]
[1724659171639,0.00671861,63714.0,63713.0,1.82089668]
[1724659172672,0.00371861,63714.0,63713.0,1.82089668]
[1724659173077,0.00571861,63714.0,63713.0,1.82089668]
[1724659173751,0.00271861,63714.0,63713.0,1.82089668]
[1724659174776,0.00471861,63714.0,63713.0,1.82089668]
[1724659176735,0.00471861,63714.0,63713.0,1.50698968]
[1724659176909,0.00471861,63714.0,63713.0,1.41967701]
[1724659177110,0.00471861,63714.0,63713.0,0.926592]
[1724659177325,0.00471861,63714.0,63713.0,0.785592]
[1724659177527,0.05159659,63714.0,63713.0,0.785592]
[1724659178343,0.05155065,63714.0,63713.0,0.785592]
[1724659179445,0.00471861,63714.0,63713.0,0.785592]
[1724659180785,0.00471861,63714.0,63713.0,0.471685]
[1724659180986,0.00471861,63714.0,63713.0,0.785592]
[1724659181365,0.07496667,63714.0,63713.0,0.785592]
[1724659182191,0.07496667,63714.0,63713.0,0.157778]
[1724659182390,0.14541861,63714.0,63713.0,0.157778]
[1724659182692,0.58707149,63714.0,63713.0,0.471685]
[1724659182893,0.49340741,63714.0,63713.0,0.471685]
[1724659183100,0.49340741,63714.0,63713.0,0.157778]
[1724659183329,0.61048147,63714.0,63713.0,0.471685]
[1724659185451,0.54548147,63714.0,63713.0,0.471685]
[1724659186104,0.35271765,63714.0,63713.0,0.471685]
[1724659186591,0.35271765,63714.0,63713.0,0.931392]
[1724659186762,0.00471861,63714.0,63713.0,0.931392]
[1724659186962,0.07494238,63714.0,63713.0,1.245299]
[1724659187187,0.00471861,63714.0,63713.0,1.42447701]
[1724659188362,0.00471861,63714.0,63713.0,1.43285725]
[1724659192144,0.00471861,63714.0,63713.0,1.43285725]
[1724659194529,0.05153811,63714.0,63713.0,1.43285725]
[1724659194934,0.05154229,63714.0,63713.0,1.43285725]
[1724659195160,0.05154227,63714.0,63713.0,1.43285725]
[1724659195534,0.00471861,63714.0,63713.0,0.96277224]
[1724659195944,0.00471861,63714.0,63713.0,0.00920524]
[1724659196148,0.12176738,63714.0,63713.0,0.16615824]
[1724659196353,0.12176738,63714.0,63713.0,0.48006524]
[1724659196354,0.3527034,63714.0,63713.0,0.48006524]
[1724659196549,0.3527034,63714.0,63713.0,0.79397224]
[1724659196550,0.00471861,63714.0,63713.0,0.79397224]
[1724659196788,0.07496229,63714.0,63713.0,0.93797224]
[1724659196963,0.05154725,63714.0,63713.0,0.93797224]
[1724659197762,0.00471861,63714.0,63713.0,0.93797224]
[1724659198579,0.07496229,63714.0,63713.0,0.93797224]
[1724659199144,0.07496229,63714.0,63713.0,0.87517224]
[1724659199346,0.00471861,63714.0,63713.0,0.79397224]
[1724659199760,0.07497153,63714.0,63713.0,0.79397224]
[1724659199966,0.00471861,63714.0,63713.0,0.79397224]
[1724659200604,0.00471861,63714.0,63713.0,1.40615725]
[1724659200812,0.00471861,63714.0,63713.0,1.42915725]
[1724659204937,0.07497413,63714.0,63713.0,1.42915725]
[1724659205737,0.07497413,63714.0,63713.0,1.28705725]
[1724659206144,0.49549697,63714.0,63713.0,0.000825]
[1724659206347,0.61255472,63714.0,63713.0,0.471685]
[1724659206763,0.61255472,63714.0,63713.0,0.157778]
[1724659206967,0.61255472,63714.0,63713.0,0.471685]
[1724659207140,0.61255472,63714.0,63713.0,0.157778]
[1724659207646,0.61255472,63714.0,63713.0,0.471685]
[1724659207845,0.61255472,63714.0,63713.0,0.157778]
[1724659208962,0.61255472,63714.0,63713.0,0.471685]
[1724659209112,0.46975472,63714.0,63713.0,0.471685]
[1724659209321,0.00471861,63714.0,63713.0,0.471685]
[1724659210279,0.05153458,63714.0,63713.0,0.932992]
[1724659210493,0.05153458,63714.0,63713.0,0.955992]
[1724659210702,0.05153529,63714.0,63713.0,1.269899]
[1724659210850,0.07494363,63714.0,63713.0,0.785592]
[1724659211056,0.00471861,63714.0,63713.0,0.000825]
[1724659211286,0.35270249,63714.0,63713.0,0.000825]
[1724659211485,0.35270249,63714.0,63713.0,0.157778]
[1724659211640,0.35251359,63714.0,63713.0,0.000825]
[1724659211839,0.35251359,63714.0,63713.0,0.157778]
[1724659212104,0.50946459,63714.0,63713.0,0.000825]
[1724659212334,0.35251359,63714.0,63713.0,0.000825]
[1724659212541,0.49031359,63714.0,63713.0,0.000825]
[1724659212748,0.49031359,63714.0,63703.0,0.313956]
[1724659212749,0.0754,63713.0,63704.0,0.156974]
[1724659212960,0.17938562,63706.0,63702.0,0.156979]
[1724659213183,0.41038388,63706.0,63704.0,0.156974]
[1724659213387,0.41038388,63706.0,63703.0,0.156976]
[1724659213586,0.41038388,63706.0,63704.0,0.156975]
[1724659214481,0.41038388,63706.0,63703.0,0.470931]
[1724659214707,0.52730104,63706.0,63703.0,0.313955]
[1724659214909,0.52830104,63706.0,63705.0,0.001825]
[1724659215119,0.41138388,63706.0,63705.0,0.001825]
[1724659215324,0.220371,63706.0,63705.0,0.001825]
[1724659215534,0.85184442,63706.0,63705.0,0.001825]
[1724659215737,1.6570468,63706.0,63705.0,0.001825]
[1724659215936,0.35006628,63706.0,63705.0,0.002825]
[1724659216144,0.34906628,63706.0,63705.0,0.786692]
[1724659216346,0.0701222,63706.0,63705.0,1.39791701]
[1724659216554,0.04675094,63712.0,63710.0,0.0665]
[1724659216759,0.04728065,63714.0,63713.0,0.156953]
[1724659216956,0.04728065,63714.0,63713.0,0.47086]
[1724659217227,0.04728065,63714.0,63713.0,0.807767]
[1724659217436,0.04728065,63714.0,63713.0,1.36085201]
[1724659217437,0.00052971,63714.0,63713.0,1.36085201]
[1724659219312,0.00252971,63714.0,63713.0,1.36085201]
[1724659220158,0.00252971,63714.0,63713.0,1.42385201]
[1724659220363,0.00452971,63714.0,63713.0,1.42385201]
[1724659222044,0.00452971,63714.0,63713.0,0.156953]
[1724659222247,0.00452971,63714.0,63713.0,0.47086]
[1724659222445,0.07465191,63714.0,63713.0,0.47086]
[1724659223049,0.00452971,63714.0,63713.0,0.47086]
[1724659224297,0.07466956,63714.0,63713.0,0.784767]
[1724659224500,0.00452971,63714.0,63713.0,0.784767]
[1724659224909,0.00452971,63714.0,63713.0,0.47086]
[1724659224910,0.07466956,63714.0,63713.0,0.47086]
[1724659225119,0.35253942,63714.0,63713.0,0.47086]
[1724659225323,0.44605124,63714.0,63713.0,0.47086]
[1724659226086,0.07467081,63714.0,63713.0,0.47086]
[1724659226291,0.35252838,63714.0,63713.0,0.47086]
[1724659226498,0.00452971,63714.0,63713.0,0.47086]
[1724659227349,0.35253049,63714.0,63713.0,0.47086]
[1724659227752,0.00452971,63714.0,63713.0,0.47086]
[1724659228578,0.44604025,63714.0,63713.0,0.47086]
[1724659228945,0.35252843,63714.0,63713.0,0.47086]
[1724659229458,0.44604228,63714.0,63713.0,0.47086]
[1724659229916,0.44604228,63714.0,63713.0,0.784767]
[1724659230119,0.00452971,63714.0,63713.0,0.784767]
[1724659230260,0.44604326,63714.0,63713.0,0.784767]
[1724659231330,0.44604326,63714.0,63713.0,0.47086]
[1724659231685,0.35253198,63714.0,63713.0,0.47086]
[1724659231886,0.46941326,63714.0,63713.0,0.47086]
[1724659232642,0.35253198,63714.0,63713.0,0.47086]
[1724659233007,0.35253198,63714.0,63713.0,0.784767]
[1724659233779,0.35253198,63714.0,63713.0,0.47086]
[1724659233990,0.35253198,63714.0,63713.0,0.156953]
[1724659235622,0.35253198,63714.0,63713.0,0.157778]
[1724659239940,0.66643398,63714.0,63713.0,0.000825]
[1724659240140,0.156963,63710.0,63705.0,0.157797]
[1724659240343,0.156963,63710.0,63705.0,0.000825]
[1724659240344,0.470913,63706.0,63705.0,0.000825]
[1724659240547,1.05963948,63706.0,63705.0,0.000825]
[1724659240753,1.05963948,63706.0,63705.0,0.314772]
[1724659240754,0.34800227,63706.0,63705.0,0.314772]
[1724659240970,0.64502655,63711.0,63706.0,0.15697]
[1724659240971,0.14022208,63709.0,63706.0,0.15697]
[1724659241179,0.34807416,63708.0,63707.0,0.156968]
[1724659241385,0.34807416,63708.0,63705.0,0.000825]
[1724659241594,0.14022208,63711.0,63707.0,0.313937]
[1724659241815,0.34806712,63710.0,63705.0,0.000825]
[1724659242007,0.50502812,63710.0,63706.0,0.15697]
[1724659242239,0.34806712,63709.0,63705.0,0.000825]
[1724659242418,0.50503112,63709.0,63705.0,0.157798]
[1724659242651,0.11681004,63706.0,63705.0,0.000825]
[1724659242827,0.11681004,63706.0,63705.0,0.001825]
[1724659242828,0.16056042,63706.0,63705.0,0.001825]
[1724659243036,0.96526954,63706.0,63705.0,0.000825]
[1724659243510,1.27921154,63706.0,63705.0,0.000825]
[1724659243917,1.42743362,63706.0,63705.0,0.000825]
[1724659244269,1.91118032,63706.0,63705.0,0.000825]
[1724659244479,1.4238442,63706.0,63705.0,0.000825]
[1724659244680,1.28362212,63706.0,63705.0,0.000825]
[1724659245052,0.35606712,63706.0,63705.0,0.471745]
[1724659245286,0.35606712,63706.0,63705.0,0.157798]
[1724659245494,0.44947995,63706.0,63705.0,0.157798]
[1724659245669,0.45647995,63706.0,63705.0,0.000825]
[1724659245904,0.47983759,63706.0,63705.0,0.000825]
[1724659246105,0.83398012,63706.0,63705.0,0.000825]
[1724659246350,0.97868012,63706.0,63705.0,0.000825]
[1724659246770,1.29262212,63706.0,63705.0,0.000825]
[1724659247817,0.66473812,63706.0,63705.0,0.000825]
[1724659248022,0.36306712,63706.0,63705.0,0.157798]
[1724659248220,0.36306712,63706.0,63705.0,0.000825]
[1724659248221,0.10039649,63706.0,63705.0,0.000825]
[1724659248445,0.09339695,63706.0,63705.0,0.000825]
[1724659248650,0.81896725,63706.0,63705.0,0.000825]
[1724659248850,0.91796725,63706.0,63705.0,0.000825]
[1724659249051,0.98016725,63706.0,63705.0,0.000825]
[1724659249278,0.97116725,63706.0,63705.0,0.000825]
[1724659249692,1.28510925,63706.0,63705.0,0.000825]
[1724659250276,1.43420468,63706.0,63705.0,0.000825]
[1724659250477,1.29410925,63706.0,63705.0,0.000825]
[1724659250855,1.43420468,63706.0,63705.0,0.000825]
[1724659251451,1.29410925,63706.0,63705.0,0.000825]
[1724659252036,1.76422926,63706.0,63705.0,0.000825]
[1724659252265,2.25158751,63706.0,63705.0,0.000825]
[1724659252645,2.25159134,63706.0,63705.0,0.000825]
[1724659252929,0.784915,63701.0,63700.0,0.0001]
[1724659253129,1.21506925,63701.0,63700.0,0.0001]
[1724659253665,1.28126925,63701.0,63700.0,0.0001]
[1724659254554,1.21806925,63701.0,63700.0,0.0001]
[1724659255049,1.22106925,63701.0,63700.0,0.0001]
[1724659255250,0.15699,63698.0,63694.0,0.157]
[1724659255490,0.04668617,63695.0,63694.0,0.157]
[1724659255945,0.04649727,63695.0,63694.0,0.157]
[1724659256359,0.04649727,63695.0,63694.0,0.471001]
[1724659257081,0.04649727,63695.0,63694.0,0.157]
[1724659257534,0.07361868,63697.0,63695.0,0.156996]
[1724659257746,0.07361868,63697.0,63695.0,0.156997]
[1724659257975,0.07361868,63697.0,63694.0,0.001]
[1724659258196,0.23061268,63697.0,63694.0,0.158]
[1724659258425,0.07002926,63695.0,63694.0,0.001]
[1724659258695,0.23061668,63695.0,63694.0,0.001825]
[1724659259348,0.47458342,63695.0,63694.0,0.001825]
[1724659259562,0.29248351,63695.0,63694.0,0.001825]
[1724659259785,0.60647951,63695.0,63694.0,0.000825]
[1724659260013,1.52528743,63695.0,63694.0,0.000825]
[1724659260221,1.52528743,63695.0,63694.0,0.001825]
[1724659260222,1.43191509,63695.0,63694.0,0.001825]
[1724659260430,1.52522425,63695.0,63694.0,0.000825]
[1724659260841,1.52522425,63695.0,63694.0,0.001825]
[1724659261050,1.52522425,63695.0,63694.0,0.000825]
[1724659261428,1.53922425,63695.0,63694.0,0.000825]
[1724659261641,1.53921035,63695.0,63694.0,0.000825]
[1724659262044,1.55321035,63695.0,63694.0,0.000825]
[1724659262212,1.4599159,63695.0,63694.0,0.000825]
[1724659262409,1.09776801,63695.0,63694.0,0.000825]
[1724659262778,1.10976801,63695.0,63694.0,0.000825]
[1724659263152,1.09576801,63695.0,63694.0,0.000825]
[1724659263360,1.86320301,63695.0,63694.0,0.000825]
[1724659263487,1.5725294,63695.0,63694.0,0.000825]
[1724659263693,1.45591744,63695.0,63694.0,0.000825]
[1724659264858,0.52914743,63695.0,63694.0,0.000825]
[1724659265116,0.48874317,63695.0,63694.0,0.000825]
[1724659265317,0.37214943,63695.0,63694.0,0.000825]
[1724659266136,0.52914743,63695.0,63694.0,0.000825]
[1724659266344,0.37214943,63695.0,63694.0,0.000825]
[1724659267555,0.48874317,63695.0,63694.0,0.000825]
[1724659268107,0.37214943,63695.0,63694.0,0.000825]
[1724659268313,0.37214943,63695.0,63694.0,0.233325]
[1724659268533,0.37214943,63695.0,63694.0,0.076325]
[1724659269143,0.46543458,63695.0,63694.0,0.076325]
[1724659269559,0.37214943,63695.0,63694.0,0.076325]
[1724659270864,0.09396535,63695.0,63692.0,0.157003]
[1724659271067,0.09396535,63695.0,63670.0,0.47415]
[1724659271068,0.09396088,63695.0,63693.0,0.157003]
[1724659271277,0.024,63695.0,63694.0,0.157]
[1724659271505,0.024,63695.0,63694.0,0.531801]
[1724659271711,0.012,63695.0,63694.0,1.00198001]
[1724659271919,0.012,63695.0,63694.0,1.65298201]
[1724659272127,0.024,63695.0,63694.0,1.65298201]
[1724659272534,0.012,63695.0,63694.0,1.65380701]
[1724659272755,0.46876099,63712.0,63711.0,0.537275]
[1724659272962,0.00090751,63713.0,63712.0,0.470868]
[1724659273112,0.00090751,63713.0,63712.0,0.78478]
[1724659273910,0.00090751,63713.0,63712.0,0.86518]
[1724659274978,0.00090751,63713.0,63712.0,1.179092]
[1724659275225,0.00090751,63713.0,63712.0,1.264292]
[1724659275434,0.00090751,63713.0,63712.0,1.241292]
[1724659275637,0.01190751,63713.0,63712.0,0.299556]
[1724659275852,0.01190751,63713.0,63712.0,0.613468]
[1724659276028,0.02290751,63713.0,63712.0,0.613468]